bitfinex/quotes_BTCUSD_20220218
["timestamp","ask_amount","ask_price","bid_price","bid_amount"]
[1645177373937,6.08668721,40914.0,40913.0,0.00199692]
[1645177375199,5.98668721,40914.0,40913.0,0.00199692]
[1645177375603,6.08668721,40914.0,40913.0,0.00199692]
[1645177376205,6.08625079,40914.0,40913.0,0.00199692]
[1645177376401,5.58625079,40914.0,40913.0,0.00199692]
[1645177378339,6.58625079,40914.0,40913.0,0.00199692]
[1645177384682,6.58625079,40914.0,40913.0,0.00235001]
[1645177384883,6.58625079,40914.0,40913.0,0.00199692]
[1645177385383,7.08625079,40914.0,40913.0,0.00199692]
[1645177388638,6.58625079,40914.0,40913.0,0.00199692]
[1645177390484,7.58625079,40914.0,40913.0,0.00199692]
[1645177390684,7.58625079,40914.0,40913.0,0.00235001]
[1645177390884,7.58625079,40914.0,40913.0,0.00199692]
[1645177393334,7.48625079,40914.0,40913.0,0.00199692]
[1645177393838,7.43625079,40914.0,40913.0,0.00199692]
[1645177395237,7.48625079,40914.0,40913.0,0.00199692]
[1645177395739,6.98625079,40914.0,40913.0,0.00199692]
[1645177397686,7.98625079,40914.0,40913.0,0.00199692]
[1645177398088,7.98625079,40914.0,40913.0,0.00193645]
[1645177401036,7.48625079,40914.0,40913.0,0.00193645]
[1645177401438,6.98625079,40914.0,40913.0,0.00193645]
[1645177402138,7.98625079,40914.0,40913.0,0.00193645]
[1645177403237,8.08625079,40914.0,40913.0,0.00193645]
[1645177404492,8.08615079,40914.0,40913.0,0.00193645]
[1645177407193,7.58615079,40914.0,40913.0,0.00193645]
[1645177408638,7.58615079,40914.0,40913.0,0.00228954]
[1645177409038,7.58615079,40914.0,40913.0,0.00193645]
[1645177409239,8.58615079,40914.0,40913.0,0.00193645]
[1645177411741,0.16921855,40913.0,40912.0,0.00035309]
[1645177411984,0.72390739,40912.0,40904.0,0.00035309]
[1645177412187,1.14390739,40912.0,40911.0,0.00044132]
[1645177412384,1.14420128,40912.0,40911.0,0.00044132]
[1645177412585,1.14390739,40912.0,40911.0,0.00044132]
[1645177412783,1.64390739,40912.0,40911.0,0.00044132]
[1645177412984,1.70506239,40912.0,40911.0,0.00044132]
[1645177413184,1.70506239,40912.0,40904.0,0.00035309]
[1645177413384,0.05,40910.0,40909.0,0.00044133]
[1645177413584,0.55,40910.0,40909.0,0.00044133]
[1645177414083,0.05,40910.0,40909.0,0.00044133]
[1645177414584,0.75506239,40912.0,40907.0,0.00044134]
[1645177414786,0.5,40910.0,40907.0,0.00044134]
[1645177415183,0.05,40909.0,40907.0,0.00044134]
[1645177415633,0.04991927,40909.0,40904.0,0.00035309]
[1645177415833,0.04991927,40909.0,40906.0,0.00044134]
[1645177416036,0.06116,40907.0,40906.0,0.00044134]
[1645177416835,0.06116,40907.0,40905.0,0.00035309]
[1645177417036,0.06116,40907.0,40904.0,0.00153451]
[1645177417235,0.24976969,40906.0,40904.0,0.00153451]
[1645177417635,0.24976969,40906.0,40904.0,0.00053451]
[1645177418037,0.24976969,40906.0,40904.0,0.00035309]
[1645177418235,0.24976969,40906.0,40903.0,0.00998143]
[1645177419238,0.24976969,40906.0,40903.0,0.0098]
[1645177419686,0.24976969,40906.0,40903.0,0.01015309]
[1645177420783,0.24976969,40906.0,40903.0,0.0098]
[1645177420987,0.24976969,40906.0,40903.0,0.01015309]
[1645177421788,0.24976969,40906.0,40905.0,0.00212826]
[1645177423242,0.24976969,40906.0,40905.0,0.00312826]
[1645177424240,0.25001757,40906.0,40905.0,0.00329268]
[1645177424940,0.00024788,40906.0,40905.0,0.00329268]
[1645177425142,0.00024788,40906.0,40905.0,0.00229268]
[1645177427086,0.00024788,40906.0,40905.0,0.00329268]
[1645177428488,0.00024788,40906.0,40905.0,0.00229268]
[1645177429088,0.00024788,40906.0,40905.0,0.00329268]
[1645177429794,0.42,40912.0,40906.0,0.00049576]
[1645177429992,0.42,40912.0,40907.0,0.08]
[1645177430193,0.42,40912.0,40909.0,0.36768192]
[1645177430194,0.4196108,40912.0,40909.0,0.36768192]
[1645177430394,0.4196108,40912.0,40911.0,0.08]
[1645177430633,0.4196108,40912.0,40911.0,0.08035309]
[1645177431036,0.4196108,40912.0,40911.0,0.08]
[1645177431236,0.4196108,40912.0,40911.0,0.082]
[1645177432237,0.75567814,40912.0,40911.0,0.082]
[1645177433037,0.75567814,40912.0,40911.0,0.08]
[1645177433236,0.75567814,40912.0,40911.0,0.082]
[1645177433637,0.4196108,40912.0,40911.0,0.082]
[1645177434488,0.41983463,40912.0,40911.0,0.08218818]
[1645177435490,0.7598676,40912.0,40911.0,0.08218818]
[1645177435888,0.7598676,40912.0,40911.0,0.00218818]
[1645177437189,0.7598676,40912.0,40911.0,0.00387886]
[1645177437589,0.41983463,40912.0,40911.0,0.00387886]
[1645177438638,0.68482502,40912.0,40911.0,0.00187886]
[1645177439336,0.68482502,40912.0,40911.0,0.00387886]
[1645177439536,0.41983463,40912.0,40911.0,0.00387886]
[1645177442987,0.41983463,40912.0,40911.0,0.00187886]
[1645177443190,0.41983463,40912.0,40911.0,0.00387886]
[1645177444488,0.41983463,40912.0,40911.0,0.00187886]
[1645177445291,0.41983463,40912.0,40911.0,0.00387886]
[1645177446640,0.41983463,40912.0,40911.0,0.00187886]
[1645177447240,0.41983463,40912.0,40911.0,0.00387886]
[1645177448640,0.41983463,40912.0,40911.0,0.00187886]
[1645177451288,0.41983463,40912.0,40911.0,0.00287886]
[1645177451785,0.41983463,40912.0,40911.0,0.00331295]
[1645177452787,0.41983463,40912.0,40911.0,0.00319323]
[1645177453137,0.41983463,40912.0,40911.0,0.00219323]
[1645177453338,0.41983463,40912.0,40911.0,0.00319323]
[1645177453839,0.41983463,40912.0,40910.0,0.07854632]
[1645177454440,0.41983463,40912.0,40911.0,0.00018818]
[1645177454640,0.41983463,40912.0,40911.0,0.0787345]
[1645177455241,0.41983463,40912.0,40911.0,0.0797345]
[1645177456445,0.41983463,40912.0,40911.0,0.4103945]
[1645177456645,0.41983463,40912.0,40911.0,0.7103945]
[1645177456895,0.41983463,40912.0,40911.0,0.8652945]
[1645177457087,0.41983463,40912.0,40911.0,0.5642945]
[1645177457288,0.41983463,40912.0,40911.0,0.5662945]
[1645177458693,0.41983463,40912.0,40911.0,0.8642945]
[1645177458891,0.41983463,40912.0,40911.0,0.5642945]
[1645177459091,0.41983463,40912.0,40911.0,0.8642945]
[1645177459693,0.41983463,40912.0,40911.0,0.5642945]
[1645177459894,7.35303024,40914.0,40913.0,0.40920632]
[1645177460097,7.35303024,40914.0,40913.0,0.46410632]
[1645177460294,7.35303024,40914.0,40913.0,0.56410632]
[1645177460295,7.35241898,40914.0,40913.0,0.56410632]
[1645177464038,7.35262522,40914.0,40913.0,0.56426582]
[1645177464985,7.77262522,40914.0,40913.0,0.56426582]
[1645177466389,7.77262522,40914.0,40913.0,0.46426582]
[1645177466786,7.77262522,40914.0,40913.0,0.56426582]
[1645177466986,7.77262522,40914.0,40913.0,0.50936582]
[1645177467187,7.76930122,40914.0,40913.0,0.51136582]
[1645177468542,7.76930122,40914.0,40913.0,0.50936582]
[1645177469344,7.76930122,40914.0,40913.0,0.51136582]
[1645177470646,7.76930122,40914.0,40913.0,0.50936582]
[1645177474792,7.34930122,40914.0,40913.0,0.50936582]
[1645177474993,7.76930122,40914.0,40913.0,0.50936582]
[1645177475396,7.76930122,40914.0,40913.0,0.51136582]
[1645177477040,7.77069397,40914.0,40913.0,0.51136582]
[1645177477440,7.77069397,40914.0,40913.0,0.50936582]
[1645177479494,7.77069397,40914.0,40913.0,0.51136582]
[1645177480891,7.77069397,40914.0,40913.0,0.50936582]
[1645177483341,7.77069397,40914.0,40913.0,0.51136582]
[1645177485143,7.77069397,40914.0,40913.0,0.50936582]
[1645177487304,7.77069397,40914.0,40913.0,0.51136582]
[1645177488602,7.77069397,40914.0,40913.0,0.50936582]
[1645177489004,7.77069397,40914.0,40913.0,0.50928906]
[1645177490004,7.21481521,40914.0,40913.0,0.50928906]
[1645177492851,7.17962388,40914.0,40913.0,0.50928906]
[1645177495391,7.17962388,40914.0,40913.0,0.51128906]
[1645177496692,7.17962388,40914.0,40913.0,0.50928906]
[1645177498845,7.17913088,40914.0,40913.0,0.50928906]
[1645177503396,7.17913088,40914.0,40913.0,0.51128906]
[1645177504399,7.17892464,40914.0,40913.0,0.51128906]
[1645177505643,7.17892464,40914.0,40913.0,0.4328195]
[1645177506743,7.17892464,40914.0,40913.0,0.4308195]
[1645177507443,7.17892464,40914.0,40913.0,0.4328195]
[1645177509145,7.17892464,40914.0,40913.0,0.44138103]
[1645177509393,7.17892464,40914.0,40913.0,0.44994256]
[1645177510395,7.17892464,40914.0,40913.0,0.44794256]
[1645177514250,7.17862172,40914.0,40913.0,0.44794256]
[1645177515352,7.17862172,40914.0,40913.0,0.44994256]
[1645177516756,7.17862172,40914.0,40913.0,0.44794256]
[1645177517513,7.17862172,40914.0,40913.0,0.44994256]
[1645177518815,7.17862172,40914.0,40913.0,0.44794256]
[1645177519418,7.17862172,40914.0,40913.0,0.44994256]
[1645177520016,6.202686,40914.0,40913.0,0.44994256]
[1645177520761,6.202686,40914.0,40913.0,0.44794256]
[1645177521460,6.202686,40914.0,40913.0,0.44994256]
[1645177522759,6.102686,40914.0,40913.0,0.44794256]
[1645177522961,6.102686,40914.0,40913.0,0.74794256]
[1645177523461,6.102686,40914.0,40913.0,0.74994256]
[1645177524802,6.102686,40914.0,40913.0,0.74794256]
[1645177525005,6.097686,40914.0,40913.0,0.74794256]
[1645177525504,6.097686,40914.0,40913.0,0.74994256]
[1645177526707,6.097686,40914.0,40913.0,0.74794256]
[1645177527509,6.097686,40914.0,40913.0,0.74994256]
[1645177528754,6.097686,40914.0,40913.0,0.74794256]
[1645177530753,6.097686,40914.0,40913.0,0.44794256]
[1645177532998,5.81981637,40914.0,40913.0,0.44794256]
[1645177539500,5.81981637,40914.0,40913.0,0.44994256]
[1645177541501,5.81981637,40914.0,40913.0,0.12128256]
[1645177541705,5.81737068,40914.0,40913.0,0.02128256]
[1645177543161,5.81737068,40914.0,40913.0,1.61928256]
[1645177543360,5.79135754,40914.0,40913.0,2.0335785]
[1645177543560,5.79135754,40914.0,40913.0,2.35534811]
[1645177543759,5.79135754,40914.0,40913.0,2.40534811]
[1645177544163,5.37135754,40914.0,40913.0,2.40534811]
[1645177544364,4.66350413,40914.0,40913.0,2.71662324]
[1645177544961,4.66350413,40914.0,40913.0,2.40534811]
[1645177545362,1.94105494,40914.0,40913.0,2.40134811]
[1645177545568,0.01099423,40926.0,40915.0,1.2]
[1645177545766,0.00039611,40929.0,40925.0,1.298]
[1645177545767,0.13294451,40927.0,40925.0,1.298]
[1645177545962,0.00488407,40938.0,40927.0,1.298]
[1645177546162,0.00488407,40938.0,40928.0,0.0092]
[1645177546362,0.0009,40936.0,40930.0,1.9846]
[1645177546562,0.0009,40936.0,40932.0,1.298]
[1645177546764,0.0009,40936.0,40935.0,1.798]
[1645177547012,0.0009,40936.0,40935.0,1.8529]
[1645177547208,0.0009,40936.0,40935.0,1.9529]
[1645177547410,0.0009,40936.0,40935.0,0.6549]
[1645177547809,0.0009,40936.0,40935.0,0.5549]
[1645177548208,0.0009,40936.0,40935.0,0.0549]
[1645177549611,0.0009,40936.0,40935.0,0.0569]
[1645177550012,0.0009,40936.0,40935.0,0.0525]
[1645177550013,0.002,40936.0,40935.0,0.0525]
[1645177550309,0.002,40936.0,40935.0,0.382778]
[1645177550509,0.002,40936.0,40935.0,0.482778]
[1645177550759,0.002,40936.0,40935.0,0.1525]
[1645177551357,0.002,40936.0,40935.0,0.102]
[1645177551557,0.002,40936.0,40935.0,0.34940106]
[1645177551757,0.002,40936.0,40935.0,0.01912306]
[1645177551957,0.002,40936.0,40935.0,0.45067064]
[1645177552760,0.002,40936.0,40935.0,0.35067064]
[1645177552959,0.242,40936.0,40935.0,0.35067064]
[1645177553960,0.242,40936.0,40935.0,0.34867064]
[1645177554161,0.242,40936.0,40935.0,0.34885827]
[1645177554162,0.242264,40936.0,40935.0,0.34885827]
[1645177555605,0.242264,40936.0,40935.0,0.35085827]
[1645177556106,0.242264,40936.0,40935.0,0.45085827]
[1645177556708,0.001494,40938.0,40936.0,0.31342611]
[1645177557106,0.001494,40938.0,40936.0,0.64370411]
[1645177557309,0.0011,40938.0,40936.0,0.31342611]
[1645177557509,0.0011,40938.0,40936.0,0.66282717]
[1645177559354,0.0011,40938.0,40936.0,0.66082717]
[1645177559957,0.0011,40938.0,40936.0,0.33054917]
[1645177560156,0.0011,40938.0,40936.0,0.66082717]
[1645177560754,0.00139417,40938.0,40936.0,0.66082717]
[1645177561157,0.0011,40938.0,40936.0,0.67002717]
[1645177561354,0.0011,40938.0,40936.0,0.33974917]
[1645177561355,0.00139417,40938.0,40936.0,0.33974917]
[1645177561558,0.00139417,40938.0,40936.0,0.33054917]
[1645177561757,0.27044566,40937.0,40936.0,0.33054917]
[1645177562004,0.27044566,40937.0,40936.0,0.33181733]
[1645177562005,0.69044566,40937.0,40936.0,0.33181733]
[1645177563004,0.476,40937.0,40936.0,0.33181733]
[1645177563608,0.478,40937.0,40936.0,0.01096133]
[1645177563804,0.718,40937.0,40936.0,0.00596133]
[1645177564005,0.718,40937.0,40936.0,0.00126816]
[1645177564406,0.718,40937.0,40936.0,0.00609499]
[1645177565652,0.716,40937.0,40936.0,0.00709499]
[1645177566850,0.716,40937.0,40936.0,0.00609499]
[1645177567648,0.716,40937.0,40936.0,0.00709499]
[1645177568849,0.716,40937.0,40936.0,0.00609499]
[1645177569511,0.717,40937.0,40936.0,0.00609499]
[1645177571009,0.716,40937.0,40936.0,0.00609499]
[1645177571510,0.716,40937.0,40936.0,0.00709499]
[1645177572910,0.716,40937.0,40936.0,0.00609499]
[1645177575655,0.716,40937.0,40936.0,0.00709499]
[1645177576151,0.716,40937.0,40936.0,0.00668199]
[1645177577100,0.716,40937.0,40936.0,0.00709499]
[1645177577503,0.716,40937.0,40936.0,0.00609499]
[1645177577700,0.716,40937.0,40936.0,0.00709499]
[1645177579001,0.716,40937.0,40936.0,0.01609499]
[1645177579401,0.71623061,40937.0,40936.0,0.01609499]
[1645177579603,0.71623061,40937.0,40936.0,0.01709499]
[1645177580863,0.71623061,40937.0,40925.0,0.2945081]
[1645177581051,1.45312478,40937.0,40924.0,0.03695813]
[1645177581251,0.6866,40932.0,40924.0,0.03695813]
[1645177581453,0.18265806,40931.0,40924.0,0.03695813]
[1645177581651,0.18295223,40931.0,40924.0,0.03795813]
[1645177581849,0.25535209,40928.0,40924.0,0.03795813]
[1645177582049,0.0549,40927.0,40924.0,0.03795813]
[1645177582249,0.29551771,40926.0,40924.0,0.03795813]
[1645177582450,0.0549,40925.0,40924.0,0.03795813]
[1645177582652,0.0549,40925.0,40924.0,0.36823613]
[1645177583052,0.0549,40925.0,40924.0,0.03795813]
[1645177583653,0.0549,40925.0,40924.0,0.03895813]
[1645177585504,0.0549,40925.0,40924.0,0.03695813]
[1645177587707,0.0559,40925.0,40924.0,0.03695813]
[1645177588151,0.2959,40925.0,40924.0,0.03695813]
[1645177589151,0.29613558,40925.0,40924.0,0.03712692]
[1645177589553,0.29513558,40925.0,40924.0,0.03712692]
[1645177589753,0.29513558,40925.0,40924.0,0.03812692]
[1645177589954,0.29513558,40925.0,40924.0,0.36840492]
[1645177590153,0.29513558,40925.0,40924.0,0.03812692]
[1645177591654,0.29613558,40925.0,40924.0,0.03712692]
[1645177593102,0.29513558,40925.0,40924.0,0.03712692]
[1645177595404,0.29513558,40925.0,40924.0,0.36740492]
[1645177595654,0.29513558,40925.0,40924.0,0.03812692]
[1645177597057,0.29513558,40925.0,40924.0,0.03712692]
[1645177597657,0.29613558,40925.0,40924.0,0.03712692]
[1645177598960,0.29513558,40925.0,40924.0,0.03712692]
[1645177599608,0.29613558,40925.0,40924.0,0.03712692]
[1645177601110,0.29513558,40925.0,40924.0,0.03712692]
[1645177601713,0.29513558,40925.0,40924.0,0.03812692]
[1645177602312,0.29513558,40925.0,40924.0,0.36840492]
[1645177602512,0.24023558,40925.0,40924.0,0.36840492]
[1645177602813,0.24023558,40925.0,40924.0,0.36831582]
[1645177603013,0.24023558,40925.0,40924.0,0.36731582]
[1645177603655,0.0026,40930.0,40927.0,0.34094376]
[1645177604059,0.0026,40930.0,40928.0,0.330278]
[1645177604256,0.1182,40936.0,40929.0,0.0549]
[1645177604257,0.00029417,40935.0,40929.0,0.0549]
[1645177604455,0.4711,40937.0,40930.0,1.628278]
[1645177604456,0.00068838,40931.0,40930.0,1.628278]
[1645177604660,0.00039421,40931.0,40930.0,1.628278]
[1645177604856,0.00039421,40931.0,40930.0,1.728278]
[1645177605056,0.00029417,40936.0,40935.0,0.31237705]
[1645177605255,0.42139417,40937.0,40936.0,0.330278]
[1645177605455,0.4211,40937.0,40936.0,0.330278]
[1645177606057,0.42,40937.0,40936.0,0.829178]
[1645177606914,0.00029417,40939.0,40937.0,0.0789]
[1645177607110,0.00139417,40940.0,40937.0,0.0789]
[1645177607312,0.00029417,40939.0,40937.0,0.0789]
[1645177607610,0.00239417,40940.0,40937.0,0.0789]
[1645177607811,0.00029417,40939.0,40937.0,0.0789]
[1645177608011,0.00029417,40939.0,40935.0,0.27280674]
[1645177608012,0.00283405,40940.0,40939.0,0.5]
[1645177608212,0.00253988,40940.0,40939.0,0.5]
[1645177609015,0.00029417,40941.0,40940.0,0.4979]
[1645177609217,0.30565276,40942.0,40940.0,0.4979]
[1645177609613,0.001,40941.0,40940.0,0.4979]
[1645177610013,0.30565276,40942.0,40940.0,0.4979]
[1645177610014,0.00173405,40942.0,40941.0,0.19508129]
[1645177610216,0.001,40942.0,40941.0,0.19508129]
[1645177611159,0.20153404,40943.0,40942.0,0.4979]
[1645177611456,0.2008,40943.0,40942.0,0.4979]
[1645177611658,0.2008,40943.0,40942.0,0.2579]
[1645177612058,0.6208,40943.0,40942.0,0.2579]
[1645177613663,0.6218,40943.0,40942.0,0.2579]
[1645177613862,0.84648328,40943.0,40942.0,0.2579]
[1645177615116,0.84548328,40943.0,40942.0,0.2579]
[1645177616322,0.6208,40943.0,40942.0,0.7579]
[1645177619355,0.6208,40943.0,40942.0,0.7580239]
[1645177619758,0.6208,40943.0,40942.0,0.7590239]
[1645177620357,0.6757,40943.0,40942.0,0.7590239]
[1645177621357,0.6757,40943.0,40942.0,1.2590239]
[1645177621358,0.6208,40943.0,40942.0,1.2590239]
[1645177621556,0.6208,40943.0,40942.0,1.25782101]
[1645177622204,0.6208,40943.0,40942.0,1.25682101]
[1645177623703,0.8608,40943.0,40942.0,1.25682101]
[1645177625652,0.8608,40943.0,40942.0,1.25782101]
[1645177626551,0.8608,40943.0,40942.0,1.75782101]
[1645177627155,0.8608,40943.0,40942.0,1.75682101]
[1645177627756,0.8618,40943.0,40942.0,1.75682101]
[1645177628157,0.662,40943.0,40942.0,1.75682101]
[1645177631610,0.662,40943.0,40942.0,2.25682101]
[1645177633856,0.664,40943.0,40942.0,2.25682101]
[1645177634258,0.8638,40943.0,40942.0,2.25682101]
[1645177634457,0.664,40943.0,40942.0,2.25682101]
[1645177635058,0.661,40943.0,40942.0,2.25682101]
[1645177635857,0.662,40943.0,40942.0,2.25682101]
[1645177636257,0.962,40943.0,40942.0,2.25682101]
[1645177636659,0.962,40943.0,40942.0,2.25674662]
[1645177636661,0.662,40943.0,40942.0,2.25674662]
[1645177636910,0.662,40943.0,40942.0,2.75674662]
[1645177637104,0.661,40943.0,40942.0,2.75674662]
[1645177637706,0.664,40943.0,40942.0,2.75674662]
[1645177639107,0.661,40943.0,40942.0,2.75674662]
[1645177639506,0.7159,40943.0,40942.0,2.75674662]
[1645177641361,0.661,40943.0,40942.0,2.75674662]
[1645177641759,0.661,40943.0,40942.0,2.75774662]
[1645177641960,0.661,40943.0,40942.0,3.20776662]
[1645177642859,0.241,40943.0,40942.0,3.20776662]
[1645177643260,0.241,40943.0,40942.0,3.20676662]
[1645177644061,0.00129417,40944.0,40943.0,0.2579]
[1645177644262,0.001,40944.0,40943.0,0.2579]
[1645177645707,0.241,40944.0,40943.0,0.2589]
[1645177647205,0.241,40944.0,40943.0,0.2579]
[1645177648555,0.242,40944.0,40943.0,0.2579]
[1645177649356,0.242,40944.0,40943.0,0.2580238]
[1645177649757,0.243,40944.0,40943.0,0.2580238]
[1645177650359,0.241,40944.0,40943.0,0.2580238]
[1645177651910,0.241,40944.0,40943.0,0.2590238]
[1645177653104,0.241,40944.0,40943.0,0.2580238]
[1645177653705,0.241,40944.0,40943.0,0.2590238]
[1645177655665,0.241,40944.0,40943.0,0.2580238]
[1645177655864,0.241,40944.0,40943.0,0.2590238]
[1645177657668,0.241,40944.0,40943.0,0.2580238]
[1645177657868,0.241,40944.0,40943.0,0.2590238]
[1645177659725,0.241,40944.0,40943.0,0.0001238]
[1645177659927,0.241,40944.0,40943.0,0.5011238]
[1645177661125,0.241,40944.0,40943.0,0.8001238]
[1645177661325,0.241,40944.0,40943.0,0.5001238]
[1645177662028,0.243,40944.0,40943.0,0.5001238]
[1645177663266,0.241,40944.0,40943.0,0.5001238]
[1645177663866,0.241,40944.0,40943.0,0.5011238]
[1645177665267,0.241,40944.0,40943.0,0.5001238]
[1645177665768,0.243,40944.0,40943.0,0.5001238]
[1645177667212,0.241,40944.0,40943.0,0.5001238]
[1645177667414,0.241,40944.0,40943.0,0.50006171]
[1645177667909,0.241,40944.0,40943.0,0.50106171]
[1645177669211,0.241,40944.0,40943.0,0.50006171]
[1645177669812,0.243,40944.0,40943.0,0.50006171]
[1645177670666,0.243,40944.0,40943.0,0.80006171]
[1645177670867,0.243,40944.0,40943.0,0.50006171]
[1645177673272,0.243,40944.0,40943.0,0.80006171]
[1645177673673,0.241,40944.0,40943.0,0.80006171]
[1645177674272,0.241,40944.0,40943.0,0.50006171]
[1645177675818,0.241,40944.0,40943.0,0.50106171]
[1645177677218,0.241,40944.0,40943.0,0.50006171]
[1645177677919,0.241,40944.0,40943.0,0.50106171]
[1645177679165,0.241,40944.0,40943.0,0.50006171]
[1645177679863,0.241,40944.0,40943.0,0.50106171]
[1645177681264,0.241,40944.0,40943.0,0.50006171]
[1645177681909,0.241,40944.0,40943.0,0.50106171]
[1645177683309,0.241,40944.0,40943.0,0.50006171]
[1645177683809,0.241,40944.0,40943.0,0.50106171]
[1645177685212,0.241,40944.0,40943.0,0.50006171]
[1645177685865,0.243,40944.0,40943.0,0.50006171]
[1645177687167,0.241,40944.0,40943.0,0.50006171]
[1645177687966,0.241,40944.0,40943.0,0.50106171]
[1645177689168,0.241,40944.0,40943.0,0.50006171]
[1645177689816,0.241,40944.0,40943.0,0.50106171]
[1645177690615,0.24093806,40944.0,40943.0,0.50106171]
[1645177691218,0.24093806,40944.0,40943.0,0.50006171]
[1645177691915,0.24093806,40944.0,40943.0,0.50106171]
[1645177693769,0.24093806,40944.0,40943.0,0.50006171]
[1645177695971,0.24293806,40944.0,40943.0,0.50006171]
[1645177697411,0.24093806,40944.0,40943.0,0.50006171]
[1645177698011,0.24293806,40944.0,40943.0,0.50006171]
[1645177699214,0.24093806,40944.0,40943.0,0.50006171]
[1645177700011,0.24293806,40944.0,40943.0,0.50006171]
[1645177701366,0.24093806,40944.0,40943.0,0.50006171]
[1645177701864,0.24293806,40944.0,40943.0,0.50006171]
[1645177703864,0.24293806,40944.0,40943.0,0.50106171]
[1645177704515,0.24093806,40944.0,40943.0,0.50006171]
[1645177705315,0.24093806,40944.0,40943.0,0.84804466]
[1645177706417,0.24093806,40944.0,40943.0,0.50006171]
[1645177706819,0.24093806,40944.0,40943.0,0.5001238]
[1645177707017,0.24093806,40944.0,40943.0,0.50180495]
[1645177707417,0.24093806,40944.0,40943.0,0.76405363]
[1645177708762,0.66093806,40944.0,40943.0,0.76405363]
[1645177708967,0.66093806,40944.0,40943.0,0.83208295]
[1645177709864,0.66093806,40944.0,40943.0,0.83308295]
[1645177711269,0.66093806,40944.0,40943.0,0.83208295]
[1645177711912,0.66293806,40944.0,40943.0,0.83250323]
[1645177713215,0.66093806,40944.0,40943.0,0.83250323]
[1645177713415,0.66093806,40944.0,40943.0,0.50222523]
[1645177713617,0.64705163,40944.0,40943.0,0.83250323]
[1645177714015,0.64705163,40944.0,40943.0,0.83350323]
[1645177715966,0.64705163,40944.0,40943.0,0.83450323]
[1645177716466,0.64705163,40944.0,40943.0,0.83350323]
[1645177716966,0.64705163,40944.0,40943.0,0.50322523]
[1645177717167,0.64705163,40944.0,40943.0,0.83350323]
[1645177717567,0.64663592,40944.0,40943.0,0.83250323]
[1645177717968,0.64663592,40944.0,40943.0,0.50222523]
[1645177718568,0.70153592,40944.0,40943.0,0.50222523]
[1645177722015,0.70253592,40944.0,40943.0,0.50222523]
[1645177723364,0.70153592,40944.0,40943.0,0.50222523]
[1645177723967,0.70153592,40944.0,40943.0,0.50322523]
[1645177724370,0.19359441,40950.0,40949.0,0.56041726]
[1645177724568,0.69359441,40950.0,40949.0,0.56041726]
[1645177724766,1.39359441,40950.0,40949.0,0.56041726]
[1645177724964,1.60658242,40950.0,40949.0,0.56041726]
[1645177725767,1.66768142,40950.0,40949.0,0.56041726]
[1645177727418,1.90768142,40950.0,40949.0,0.56041726]
[1645177727615,1.40768142,40950.0,40949.0,0.56041726]
[1645177729122,1.40768142,40950.0,40949.0,0.56054103]
[1645177729317,1.88258142,40950.0,40949.0,0.56054103]
[1645177729518,1.82768142,40950.0,40949.0,0.56054103]
[1645177730118,1.57508801,40950.0,40949.0,0.56054103]
[1645177731967,1.57508801,40950.0,40949.0,0.56362755]
[1645177732168,1.3621,40950.0,40949.0,0.80060456]
[1645177733367,1.3621,40950.0,40949.0,0.79960456]
[1645177733968,1.3621,40950.0,40949.0,0.80060456]
[1645177734915,1.3621,40950.0,40949.0,0.56362755]
[1645177735315,1.3621,40950.0,40949.0,0.56262755]
[1645177735916,1.3621,40950.0,40949.0,0.56362755]
[1645177736117,1.3621,40950.0,40949.0,0.53862755]
[1645177739268,1.3621,40950.0,40949.0,0.53762755]
[1645177740068,1.3621,40950.0,40949.0,0.53862755]
[1645177741169,1.423201,40950.0,40949.0,0.53862755]
[1645177741371,1.423201,40950.0,40949.0,0.53762755]
[1645177743314,1.3621,40950.0,40949.0,0.53762755]
[1645177744117,1.3621,40950.0,40949.0,0.53862755]
[1645177745868,1.3621,40950.0,40949.0,0.53762755]
[1645177746069,1.3621,40950.0,40949.0,0.53862755]
[1645177747871,1.3621,40950.0,40949.0,0.53762755]
[1645177750121,1.3631,40950.0,40949.0,0.53762755]
[1645177752024,1.3641,40950.0,40949.0,0.53762755]
[1645177753466,0.662,40950.0,40949.0,0.53762755]
[1645177753667,0.662,40950.0,40949.0,1.03762755]
[1645177753868,0.66,40950.0,40949.0,1.03762755]
[1645177754671,0.66,40950.0,40949.0,1.0195986]
[1645177754872,0.61,40950.0,40949.0,1.0195986]
[1645177756071,0.61,40950.0,40949.0,1.0205986]
[1645177757923,0.61,40950.0,40949.0,1.0195986]
[1645177758123,0.611,40950.0,40949.0,1.0195986]
[1645177758924,0.611,40950.0,40949.0,1.5195986]
[1645177759326,0.61,40950.0,40949.0,1.5195986]
[1645177759624,0.6097,40950.0,40949.0,1.5195986]
[1645177760128,0.6117,40950.0,40949.0,1.5195986]
[1645177760781,0.001,40956.0,40951.0,0.330278]
[1645177760981,0.001,40956.0,40955.0,0.630278]
[1645177761381,0.001,40956.0,40955.0,2.028278]
[1645177761579,0.00276562,40958.0,40955.0,0.430278]
[1645177761580,0.0011,40958.0,40955.0,0.430278]
[1645177761780,0.5335,40960.0,40957.0,0.330278]
[1645177761781,0.0011,40960.0,40957.0,0.330278]
[1645177761980,0.0011,40960.0,40959.0,0.830278]
[1645177762178,0.0011,40960.0,40959.0,0.5]
[1645177762378,0.0011,40960.0,40959.0,0.930278]
[1645177762781,0.2411,40960.0,40959.0,0.830278]
[1645177762979,0.2411,40960.0,40959.0,0.5]
[1645177766023,0.2411,40960.0,40959.0,0.502]
[1645177767024,0.2411,40960.0,40959.0,0.50371274]
[1645177767424,0.2411,40960.0,40959.0,0.50171274]
[1645177768972,0.2411,40960.0,40959.0,0.50182327]
[1645177769174,0.5411,40960.0,40959.0,0.50182327]
[1645177769575,0.646,40960.0,40959.0,0.50182327]
[1645177769773,1.346,40960.0,40959.0,0.50182327]
[1645177769973,1.046,40960.0,40959.0,0.50182327]
[1645177771373,1.36918925,40960.0,40959.0,0.50182327]
[1645177771574,1.046,40960.0,40959.0,0.50182327]
[1645177775130,0.996,40960.0,40959.0,0.50182327]
[1645177775329,0.996,40960.0,40959.0,0.49060054]
[1645177776375,1.046,40960.0,40959.0,0.49060054]
[1645177776773,0.996,40960.0,40959.0,0.49060054]
[1645177784179,0.996,40960.0,40959.0,0.49160054]
[1645177784584,0.9411,40960.0,40959.0,0.49160054]
[1645177786484,0.9411,40960.0,40959.0,0.49151163]